fUSD/lending_fUSD_20250929
["ID","MTS","AMOUNT","RATE_DAILY","PERIOD"]
[388418700,1759162271445,-349.196649,0.00024658,7]
[388418701,1759162271455,-349.196649,0.00024658,7]
[388418702,1759162271469,-349.196649,0.00024658,7]
[388418703,1759162271479,-349.196649,0.00024658,7]
[388418704,1759162271489,-349.196649,0.00024658,7]
[388418705,1759162271498,-349.196649,0.00024658,7]
[388418706,1759162271508,-349.196649,0.00024658,7]
[388418707,1759162271519,-349.196649,0.00024658,7]
[388418708,1759162271528,-349.196649,0.00024658,7]
[388418709,1759162271538,-349.196649,0.00024658,7]
[388418710,1759162271548,-349.196649,0.00024658,7]
[388418712,1759162271558,-349.196649,0.00024658,7]
[388418713,1759162271567,-349.196649,0.00024658,7]
[388418714,1759162271577,-1000.0,0.00024658,3]
[388418715,1759162271587,-1000.0,0.00024658,3]
[388418716,1759162271597,-1000.0,0.00024658,3]
[388418717,1759162271607,-1000.0,0.00024658,3]
[388418718,1759162271617,-1000.0,0.00024658,3]
[388418719,1759162271627,-1000.0,0.00024658,3]
[388418720,1759162271636,-1000.0,0.00024658,3]
[388418721,1759162271646,-1000.0,0.00024658,3]
[388418722,1759162271657,-1000.0,0.00024658,3]
[388418723,1759162271667,-1000.0,0.00024658,3]
[388418724,1759162271677,-1000.0,0.00024658,3]
[388418726,1759162271686,-1000.0,0.00024658,3]
[388418727,1759162271695,-1000.0,0.00024658,3]
[388418728,1759162271705,-1000.0,0.00024658,3]
[388418729,1759162271715,-1000.0,0.00024658,3]
[388418730,1759162271724,-1000.0,0.00024658,3]
[388418731,1759162271734,-1000.0,0.00024658,3]
[388418732,1759162271745,-1000.0,0.00024658,3]
[388418733,1759162271754,-1000.0,0.00024658,3]
[388418734,1759162271764,-1000.0,0.00024658,3]
[388418735,1759162271774,-1000.0,0.00024658,3]
[388418736,1759162271785,-1000.0,0.00024658,3]
[388418737,1759162271794,-1000.0,0.00024658,3]
[388418738,1759162271804,-1000.0,0.00024658,3]
[388418739,1759162271814,-1000.0,0.00024658,3]
[388418740,1759162271823,-1000.0,0.00024658,3]
[388418741,1759162271833,-239.286472,0.00024658,7]
[388418743,1759162271843,-239.286472,0.00024658,7]
[388418744,1759162271853,-239.286472,0.00024658,7]
[388418745,1759162271864,-239.286472,0.00024658,7]
[388418746,1759162271873,-239.286472,0.00024658,7]
[388418747,1759162271883,-239.286472,0.00024658,7]
[388418748,1759162271891,-239.286472,0.00024658,7]
[388418749,1759162271900,-239.286472,0.00024658,7]
[388418750,1759162271909,-239.286472,0.00024658,7]
[388418751,1759162271918,-239.286472,0.00024658,7]
[388418752,1759162271927,-239.286472,0.00024658,7]
[388418753,1759162271936,-239.286472,0.00024658,7]
[388418754,1759162271945,-239.286472,0.00024658,7]
[388418755,1759162271954,-239.286472,0.00024658,7]
[388418756,1759162271964,-239.286472,0.00024658,7]
[388418757,1759162271973,-239.286472,0.00024658,7]
[388418758,1759162271983,-239.286472,0.00024658,7]
[388418759,1759162271994,-239.286472,0.00024658,7]
[388418760,1759162272004,-239.286472,0.00024658,7]
[388418761,1759162272014,-239.286476,0.00024658,7]
[388418762,1759162272027,-1000.0,0.00024658,3]
[388418763,1759162272048,-1000.0,0.00024658,3]
[388418764,1759162272060,-1000.0,0.00024658,3]
[388418765,1759162272070,-1000.0,0.00024658,3]
[388418766,1759162272081,-1000.0,0.00024658,3]
[388418767,1759162272091,-1000.0,0.00024658,3]
[388418768,1759162272101,-1000.0,0.00024658,3]
[388418769,1759162272111,-1000.0,0.00024658,3]
[388418770,1759162272121,-1000.0,0.00024658,3]
[388418771,1759162272131,-1000.0,0.00024658,3]
[388418772,1759162272141,-1000.0,0.00024658,3]
[388418773,1759162272151,-1000.0,0.00024658,3]
[388418774,1759162272161,-1000.0,0.00024658,3]
[388418775,1759162272172,-1000.0,0.00024658,3]
[388418776,1759162272182,-1000.0,0.00024658,3]
[388418777,1759162272193,-1000.0,0.00024658,3]
[388418778,1759162272202,-1000.0,0.00024658,3]
[388418779,1759162272212,-1000.0,0.00024658,3]
[388418780,1759162272226,-151.0,0.00024658,7]
[388418781,1759162272236,-151.0,0.00024658,7]
[388418782,1759162272246,-151.0,0.00024658,7]
[388418783,1759162272256,-151.0,0.00024658,7]
[388418784,1759162272266,-151.0,0.00024658,7]
[388418785,1759162272275,-151.0,0.00024658,7]
[388418786,1759162272291,-151.0,0.00024658,7]
[388418788,1759162272301,-158.385575,0.00024658,7]
[388418789,1759162272310,-1000.0,0.00024658,3]
[388418790,1759162272320,-551.0,0.00024658,2]
[388418791,1759162272330,-217.15233878,0.00024658,2]
[388418792,1759162272340,-350.0,0.00024668,2]
[388418793,1759162272350,-5152.91979535,0.00024673,2]
[388418794,1759162272359,-5000.0,0.00024673,2]
[388418795,1759162272372,-5000.0,0.00024673,2]
[388418796,1759162272387,-5000.0,0.00024673,2]
[388418797,1759162272396,-5000.0,0.00024673,2]
[388418799,1759162272410,-28374.71829233,0.00024683,2]
[388418800,1759162272421,-553.0,0.0002469,2]
[388418801,1759162272431,-38896.72,0.000247,2]
[388418802,1759162272442,-2000.0,0.000247,2]
[388418803,1759162272454,-200.0,0.0002471,7]
[388418804,1759162272467,-152.0,0.00024713,5]
[388418805,1759162272478,-2000.0,0.00024731,2]
[388418806,1759162272489,-500.0,0.00024731,2]
[388418807,1759162272501,-179.18691403,0.00024763,2]
[388418808,1759162272511,-713.0,0.00024766,2]
[388418809,1759162272522,-478.0,0.00024766,2]
[388418810,1759162272534,-2307.0,0.00024766,2]
[388418811,1759162272544,-500.0,0.00024766,2]
[388418812,1759162272554,-2195.0,0.00024766,2]
[388418813,1759162272564,-500.0,0.00024766,2]
[388418814,1759162272575,-588.0,0.00024766,2]
[388418815,1759162272586,-560740.80909395,0.00024799,2]
[388418816,1759162272768,-1338.7516532,0.00018638,2]
[388418817,1759162272788,-2895.2483468,0.00018638,2]
[388418818,1759162272807,-1148.529218,0.00019177,2]
[388418819,1759162272826,-623.741784,0.00019177,2]
[388418820,1759162272842,-1148.529218,0.000199,2]
[388418821,1759162272860,-623.741784,0.000199,2]
[388418822,1759162272877,-4234.0,0.00021638,2]
[388418823,1759162272895,-1148.529218,0.00022,7]
[388418824,1759162272913,-1148.529218,0.00023476,7]
[388418825,1759162272933,-1148.529218,0.00023476,7]
[388418826,1759162272949,-1148.529218,0.00024,7]
[388418827,1759162272964,-1148.529218,0.00024,7]
[388418828,1759162272977,-7759.24727604,0.00024799,2]
[388418829,1759162272992,-151.0,0.000248,7]
[388418830,1759162273022,-151.0,0.000248,7]
[388418831,1759162273045,-151.0,0.000248,7]
[388418832,1759162273061,-151.0,0.000248,7]
[388418833,1759162273085,-349.196649,0.000248,7]
[388418834,1759162273107,-349.196649,0.000248,7]
[388418835,1759162273121,-349.196649,0.000248,7]
[388418836,1759162273136,-151.0,0.000248,7]
[388418837,1759162273186,-349.196646,0.000248,7]
[388418838,1759162273204,-324.455576,0.000248,7]
[388418839,1759162273219,-324.455576,0.000248,7]
[388418840,1759162273236,-324.455576,0.000248,7]
[388418841,1759162273252,-324.455578,0.000248,7]
[388418842,1759162273268,-612729.212823,0.000248,3]
[388418843,1759162273284,-4000.0,0.00024808,2]
[388418844,1759162273301,-4000.0,0.00024808,2]
[388418845,1759162273319,-200.0,0.0002481,7]
[388418846,1759162273334,-351.92318229,0.0002481,2]
[388418847,1759162273350,-600.0,0.0002485,2]
[388418848,1759162273374,-4609.0,0.00024872,2]
[388418849,1759162273398,-1048.32638616,0.00024873,5]
[388418850,1759162273422,-1063.59335662,0.00024873,5]
[388418851,1759162273442,-1054.03753366,0.00024873,5]
[388418852,1759162273464,-1069.79993653,0.00024873,5]
[388418853,1759162273486,-1108.22926343,0.00024873,5]
[388418854,1759162273506,-1071.37348954,0.00024873,5]
[388418855,1759162273527,-1095.3292226,0.00024873,5]
[388418856,1759162273547,-1025.48696365,0.00024873,5]
[388418857,1759162273567,-1148.02741064,0.00024873,5]
[388418858,1759162273588,-1116.82176165,0.00024873,5]
[388418859,1759162273606,-1098.58474299,0.00024873,5]
[388418860,1759162273624,-1010.79477971,0.00024873,5]
[388418861,1759162273644,-1095.78787111,0.00024873,5]
[388418862,1759162273660,-1115.83104065,0.00024873,5]
[388418863,1759162273677,-1145.38748517,0.00024873,5]
[388418864,1759162273694,-1072.8473585,0.00024873,5]
[388418865,1759162273712,-1129.24775156,0.00024873,5]
[388418866,1759162273738,-1101.45634681,0.00024873,5]
[388418867,1759162273764,-1038.83821089,0.00024873,5]
[388418868,1759162273786,-1088.49671611,0.00024873,5]
[388418869,1759162273809,-1040.09149406,0.00024873,5]
[388418871,1759162273830,-1056.19282251,0.00024873,5]
[388418872,1759162273853,-1139.95276061,0.00024873,5]
[388418873,1759162273874,-1095.79118956,0.00024873,5]
[388418874,1759162273896,-1025.23722312,0.00024873,5]
[388418875,1759162273918,-1085.33203812,0.00024873,5]
[388418878,1759162273937,-1019.24241985,0.00024873,5]
[388418879,1759162273958,-1028.83000319,0.00024873,5]
[388418880,1759162273976,-1114.5873058,0.00024873,5]
[388418881,1759162273995,-1006.88367261,0.00024873,5]
[388418882,1759162274015,-1099.28329376,0.00024873,5]
[388418883,1759162274034,-1142.18096198,0.00024873,5]
[388418884,1759162274054,-1074.70911178,0.00024873,5]
[388418885,1759162274080,-1109.53437524,0.00024873,5]
[388418886,1759162274104,-1127.84536683,0.00024873,5]
[388418887,1759162274128,-180.0,0.00024878,2]
[388418888,1759162274151,-17119.32641887,0.000249,2]
[388418890,1759162274178,-1034.89865371,0.000249,2]
[388418891,1759162274200,-1000.0,0.000249,5]
[388418892,1759162274220,-616642.165449,0.000249,3]
[388418893,1759162274241,-200.0,0.0002491,7]
[388418894,1759162274262,-153.0,0.00024932,2]
[388418895,1759162274280,-551.0,0.00024932,2]
[388418896,1759162274300,-1113.62,0.00024936,2]
[388418897,1759162274318,-586.51725379,0.0002494,2]
[388418898,1759162274336,-2143.79960378,0.00025,2]
[388418899,1759162274353,-300.0,0.00025,2]
[388418900,1759162274373,-151.0,0.00025,2]
[388418901,1759162274394,-1287.97101229,0.00025,4]
[388418902,1759162274412,-3177.82019,0.00025,2]
[388418903,1759162274434,-203.94770754,0.00025,2]
[388418904,1759162274452,-1754.06953223,0.00025,2]
[388418905,1759162274469,-397.23343228,0.00025,2]
[388418906,1759162274487,-360.0,0.00025,2]
[388418907,1759162274505,-3760.25243635,0.00025,2]
[388418908,1759162274522,-2990.93784038,0.00025,2]
[388418909,1759162274538,-25077.38241306,0.00025,2]
[388418910,1759162274554,-1045.78314683,0.00025,2]
[388418911,1759162274571,-164.3728642,0.00025,2]
[388418912,1759162274587,-50622.24504734,0.00025,2]
[388418913,1759162274605,-1000.0,0.00025,4]
[388418914,1759162274621,-3600.0,0.00025,5]
[388418915,1759162274640,-300.0,0.00025,2]
[388418916,1759162274659,-300.0,0.00025,2]
[388418917,1759162274675,-300.0,0.00025,2]
[388418918,1759162274692,-300.0,0.00025,2]
[388418919,1759162274708,-338.6,0.00025,2]
[388418920,1759162274724,-17113.77444347,0.00025,7]
[388418921,1759162274741,-5684.31,0.00025,7]
[388418922,1759162274755,-6501.68026339,0.00025,2]
[388418923,1759162274772,-3227.26,0.00025,7]
[388418924,1759162274788,-2002.10900695,0.00025,5]
[388418925,1759162274803,-207.8,0.00025,2]
[388418926,1759162274818,-162.6458266,0.00025,3]
[388418927,1759162274834,-4715.37946929,0.00025,3]
[388418928,1759162274850,-4636.58,0.00025,7]
[388418929,1759162274866,-201387.73,0.00025,7]
[388418930,1759162274881,-1001.0,0.00025,2]
[388418931,1759162274898,-4000.0,0.00025,4]
[388418932,1759162274915,-150.0,0.00025,2]
[388418933,1759162274930,-1292.0,0.00025,2]
[388418934,1759162274946,-15000.0,0.0002501,2]
[388418935,1759162274962,-713.0,0.0002504,2]
[388418936,1759162274978,-478.0,0.0002504,2]
[388418937,1759162274996,-2307.0,0.0002504,2]
[388418938,1759162275012,-195.30443077,0.0002504,2]
[388418939,1759162275027,-2195.0,0.0002504,2]
[388418940,1759162275055,-500.0,0.0002504,2]
[388418941,1759162275079,-588.0,0.0002504,2]
[388418942,1759162275097,-28374.71829233,0.00025065,2]
[388418943,1759162275120,-1047.26780866,0.00025088,5]
[388418944,1759162275139,-1132.25853894,0.00025088,5]
[388418945,1759162275157,-1092.64156209,0.00025088,5]
[388418946,1759162275176,-1091.12566117,0.00025088,5]
[388418947,1759162275195,-1082.33131843,0.00025088,5]
[388418948,1759162275213,-1074.08558328,0.00025088,5]
[388418949,1759162275230,-1024.68280061,0.00025088,5]
[388418950,1759162275247,-1074.74010313,0.00025088,5]
[388418951,1759162275264,-1058.42593171,0.00025088,5]
[388418952,1759162275282,-1059.43276968,0.00025088,5]
[388418953,1759162275298,-1139.09515927,0.00025088,5]
[388418954,1759162275314,-1222.18641189,0.00025088,5]
[388418955,1759162275330,-200.0,0.000251,7]
[388418956,1759162275346,-500.0,0.00025144,7]
[388418957,1759162275362,-500.0,0.00025145,7]
[388418958,1759162275378,-500.0,0.00025145,7]
[388418959,1759162275404,-491.89265,0.00025147,2]
[388418960,1759162275425,-500.0,0.00025151,2]
[388418961,1759162275449,-1100.0,0.00025163,7]
[388418962,1759162275472,-700.0,0.00025178,2]
[388418963,1759162275494,-810.0,0.00025179,7]
[388418964,1759162275514,-150.18584876,0.00025185,5]
[388418965,1759162275535,-1100.0,0.00025196,7]
[388418966,1759162275558,-551.0,0.00025206,2]
[388418967,1759162275576,-225.18697532,0.00025206,2]
[388418968,1759162275595,-1900.0,0.00025214,7]
[388418969,1759162275616,-450.0,0.00025216,2]
[388418970,1759162275636,-500.0,0.00025235,7]
[388418971,1759162275655,-500.0,0.00025239,7]
[388418972,1759162275675,-1100.0,0.0002526,7]
[388418973,1759162275692,-1900.0,0.00025276,7]
[388418974,1759162275709,-2000.0,0.00025305,7]
[388418975,1759162275726,-713.0,0.00025314,2]
[388418976,1759162275744,-478.0,0.00025314,2]
[388418977,1759162275768,-2307.0,0.00025314,2]
[388418978,1759162275791,-2195.0,0.00025314,2]
[388418979,1759162275809,-500.0,0.00025314,2]
[388418980,1759162275829,-588.0,0.00025314,2]
[388418981,1759162275847,-1100.0,0.0002533,7]
[388418982,1759162275864,-500.0,0.00025334,7]
[388418983,1759162275883,-2200.0,0.00025348,7]
[388418984,1759162275902,-1900.0,0.00025353,7]
[388418985,1759162275919,-4500.0,0.00025356,2]
[388418986,1759162275937,-879.6569364,0.00025356,2]
[388418987,1759162275954,-163.0,0.00025358,7]
[388418988,1759162275971,-724.32567084,0.00025363,7]
[388418989,1759162275989,-1100.0,0.00025368,7]
[388418990,1759162276005,-200.0,0.00025381,2]
[388418991,1759162276023,-500.0,0.0002539,7]
[388418992,1759162276038,-600.0,0.00025398,2]
[388418993,1759162276054,-1900.0,0.00025401,7]
[388418994,1759162276073,-500.0,0.00025403,7]
[388418995,1759162276089,-1100.0,0.00025408,7]
[388418996,1759162276103,-164.17,0.00025422,2]
[388418997,1759162276126,-500.0,0.00025434,7]
[388418998,1759162276143,-1900.0,0.00025435,7]
[388418999,1759162276161,-28374.71829233,0.00025446,3]
[388419000,1759162276178,-154.0,0.00025479,2]
[388419001,1759162276198,-551.0,0.0002548,2]
[388419002,1759162276214,-500.0,0.00025483,7]
[388419003,1759162276230,-2200.0,0.00025489,7]
[388419004,1759162276246,-2000.0,0.00025497,7]
[388419005,1759162276264,-500.0,0.00025499,7]
[388419006,1759162276280,-2000.0,0.00025499,7]
[388419007,1759162276295,-258.0,0.000255,10]
[388419008,1759162276312,-500.0,0.00025517,7]
[388419009,1759162276329,-1900.0,0.00025524,7]
[388419010,1759162276345,-1900.0,0.0002553,7]
[388419011,1759162276362,-500.0,0.00025537,7]
[388419012,1759162276378,-1100.0,0.00025538,7]
[388419013,1759162276397,-342.93852447,0.00025546,2]
[388419014,1759162276413,-500.0,0.00025547,7]
[388419015,1759162276430,-500.0,0.00025547,7]
[388419016,1759162276445,-2200.0,0.0002557,7]
[388419017,1759162276463,-713.0,0.00025588,2]
[388419018,1759162276477,-478.0,0.00025588,2]
[388419019,1759162276495,-2307.0,0.00025588,2]
[388419020,1759162276509,-2195.0,0.00025588,2]
[388419021,1759162276524,-455.0,0.00025588,2]
[388419022,1759162276540,-588.0,0.00025588,2]
[388419023,1759162276557,-500.0,0.00025598,7]
[388419024,1759162276574,-38896.72,0.000256,2]
[388419025,1759162276589,-2978.09768452,0.000256,2]
[388419026,1759162276604,-1100.0,0.00025613,7]
[388419027,1759162276622,-500.0,0.00025627,7]
[388419028,1759162276637,-200.0,0.00025635,2]
[388419029,1759162276653,-500.0,0.0002564,7]
[388419030,1759162276668,-500.0,0.00025661,7]
[388419031,1759162276684,-500.0,0.00025674,7]
[388419032,1759162276699,-2200.0,0.00025698,7]
[388419033,1759162276716,-544.93,0.00025713,2]
[388419034,1759162276729,-350.8,0.00025713,2]
[388419035,1759162276744,-150.0,0.00025713,2]
[388419037,1759162278784,-373.59,0.00025713,2]
[388419038,1759162278823,-1196.09,0.00025713,2]
[388419039,1759162278842,-544.93,0.00025713,2]
[388419040,1759162278882,-300.0,0.00025713,2]
[388419041,1759162278907,-1196.09,0.00025713,2]
[388419042,1759162278917,-544.93,0.00025713,2]
[388419043,1759162278927,-150.0,0.00025713,2]
[388419044,1759162278938,-1196.09,0.00025713,2]
[388419045,1759162278948,-412.39,0.00025713,2]
[388419046,1759162278958,-1196.09,0.00025713,2]
[388419047,1759162278968,-412.39,0.00025713,2]
[388419048,1759162278978,-1196.09,0.00025713,2]
[388419049,1759162278987,-412.39,0.00025713,2]
[388419050,1759162278997,-1188.9,0.00025713,2]
[388419051,1759162279008,-411.31,0.00025713,2]
[388419052,1759162279018,-1900.0,0.00025726,7]
[388419053,1759162279027,-10000.0,0.00025729,12]
[388419054,1759162279037,-2000.0,0.00025733,7]
[388419055,1759162279048,-500.0,0.00025733,7]
[388419056,1759162279059,-287.61899177,0.00025745,2]
[388419057,1759162279068,-160.0,0.00025745,2]
[388419058,1759162279079,-386.87667747,0.00025745,2]
[388419059,1759162279091,-551.0,0.00025754,2]
[388419060,1759162279100,-233.51889341,0.00025754,2]
[388419061,1759162279110,-550.0,0.00025764,2]
[388419062,1759162279119,-500.0,0.0002577,7]
[388419063,1759162279129,-1100.0,0.00025792,7]
[388419064,1759162279139,-1900.0,0.00025821,7]
[388419065,1759162279148,-28374.71829233,0.00025828,4]
[388419066,1759162279157,-1900.0,0.00025841,7]
[388419067,1759162279167,-713.0,0.00025862,2]
[388419068,1759162279177,-478.0,0.00025862,2]
[388419069,1759162279187,-2307.0,0.00025862,2]
[388419070,1759162279198,-2195.0,0.00025862,2]
[388419071,1759162279209,-588.0,0.00025862,2]
[388419072,1759162279219,-540.0,0.0002587,2]
[388419073,1759162279230,-150.0,0.00025872,2]
[388419074,1759162279240,-500.0,0.00025876,7]
[388419075,1759162279249,-500.0,0.0002589,7]
[388419076,1759162279259,-200.0,0.00025891,2]
[388419077,1759162279268,-2579.44676327,0.00025904,2]
[388419078,1759162279278,-1100.0,0.00025908,7]
[388419079,1759162279288,-2200.0,0.00025909,7]
[388419080,1759162279300,-500.0,0.00025922,7]
[388419081,1759162279310,-500.0,0.00025933,7]
[388419082,1759162279320,-600.0,0.00025946,2]
[388419083,1759162279330,-1611.68690572,0.00025946,7]
[388419085,1759162280862,-1148.529218,0.00019177,2]
[388419086,1759162280872,-623.741784,0.00022,7]
[388419087,1759162280883,-4234.0,0.00024638,2]
[388419088,1759162280894,-288.31309428,0.00025946,7]
[388419089,1759162280904,-1900.0,0.00025952,7]
[388419090,1759162280916,-500.0,0.00025957,7]
[388419091,1759162280927,-500.0,0.00025965,7]
[388419092,1759162280939,-1900.0,0.00025974,7]
[388419093,1759162280949,-500.0,0.00025977,7]
[388419094,1759162280959,-590.12742785,0.0002599,2]
[388419095,1759162280971,-500.0,0.00025994,7]
[388419096,1759162280981,-4443.80025091,0.00026,2]
[388419097,1759162280991,-4186.03965005,0.00026,2]
[388419098,1759162281000,-212.66741711,0.00026,2]
[388419099,1759162281009,-13033.2108399,0.00026,10]
[388419100,1759162281019,-160.03258068,0.00026,2]
[388419101,1759162281029,-1424.0,0.00026,5]
[388419102,1759162281039,-3600.0,0.00026,6]
[388419103,1759162281049,-2149.58629154,0.00026,2]
[388419104,1759162281060,-5684.31,0.00026,7]
[388419105,1759162281071,-3227.26,0.00026,7]
[388419106,1759162281081,-201387.73,0.00026,7]
[388419107,1759162281090,-440.80127612,0.00026,2]
[388419108,1759162281101,-1021.46,0.00026,2]
[388419109,1759162281111,-1001.0,0.00026,2]
[388419110,1759162281121,-4000.0,0.00026,4]
[388419111,1759162281132,-1100.0,0.00026004,7]
[388419112,1759162281142,-500.0,0.00026006,7]
[388419113,1759162281152,-1900.0,0.00026016,7]
[388419114,1759162281162,-1000.0,0.00026027,2]
[388419115,1759162281172,-1000.0,0.00026027,2]
[388419116,1759162281182,-1000.0,0.00026027,2]
[388419117,1759162281192,-391.85319985,0.00026027,2]
[388419118,1759162281203,-6687.59,0.00026027,2]
[388419119,1759162281213,-303.45564526,0.00026027,2]
[388419120,1759162281223,-551.0,0.00026028,2]
[388419121,1759162281234,-1100.0,0.00026038,7]
[388419122,1759162281244,-1900.0,0.00026063,7]
[388419123,1759162281254,-500.0,0.0002607,7]
[388419124,1759162281265,-1100.0,0.00026086,7]
[388419125,1759162281277,-2200.0,0.00026116,7]
[388419126,1759162281287,-1100.0,0.00026131,7]
[388419127,1759162281297,-713.0,0.00026136,2]
[388419128,1759162281307,-478.0,0.00026136,2]
[388419129,1759162281317,-2307.0,0.00026136,2]
[388419130,1759162281327,-2195.0,0.00026136,2]
[388419131,1759162281337,-588.0,0.00026136,2]
[388419132,1759162281348,-2200.0,0.00026138,7]
[388419133,1759162281358,-200.0,0.0002615,2]
[388419134,1759162281368,-167.53562025,0.00026178,7]
[388419135,1759162281378,-2200.0,0.00026207,7]
[388419136,1759162281394,-1100.0,0.00026209,7]
[388419137,1759162281403,-28374.71829233,0.0002621,5]
[388419138,1759162281413,-500.0,0.00026221,7]
[388419139,1759162281424,-500.0,0.00026254,7]
[388419140,1759162281436,-2000.0,0.00026264,7]
[388419141,1759162281446,-1900.0,0.00026265,7]
[388419142,1759162281456,-1100.0,0.00026266,7]
[388419143,1759162281465,-1100.0,0.00026269,7]
[388419144,1759162281476,-700.0,0.00026274,2]
[388419145,1759162281486,-551.0,0.00026302,2]
[388419146,1759162281497,-1100.0,0.00026302,7]
[388419147,1759162281507,-242.15909246,0.00026302,2]
[388419148,1759162281518,-650.0,0.00026312,2]
[388419149,1759162281528,-1162.26191586,0.00026322,7]
[388419150,1759162281542,-837.73808414,0.00026322,7]
[388419151,1759162281553,-500.0,0.0002633,7]
[388419152,1759162281563,-2200.0,0.00026359,7]
[388419153,1759162281573,-880.14102027,0.00026359,7]
[388419154,1759162281585,-400.0,0.00026359,7]
[388419155,1759162281597,-719.85897973,0.00026359,7]
[388419156,1759162281607,-246.82239218,0.0002636,7]
[388419157,1759162281620,-253.17760782,0.0002636,7]
[388419158,1759162281631,-1100.0,0.00026364,7]
[388419159,1759162281642,-500.0,0.00026374,7]
[388419160,1759162281652,-6384.2133351,0.000264,2]
[388419161,1759162281665,-582.53899998,0.000264,2]
[388419162,1759162281677,-3485.55889359,0.000264,2]
[388419167,1759162366070,155.0,0.00016603,2]
[388419168,1759162378504,150.75,0.00011237,2]
[388419169,1759162378662,150.75,0.00014046,2]
[388419383,1759162886852,1318.83,0.000256,120]
[388419440,1759163244885,300.0,0.000165,6]
[388419441,1759163246976,600.0,0.000166,6]
[388419572,1759163431781,-900.0,0.000167,6]
[388419574,1759163431791,-1300.0,0.000168,6]
[388419575,1759163431802,-150.75,0.00016856,2]
[388419577,1759163431812,-176.0,0.00016899,2]
[388419579,1759163431822,-1200.0,0.00016899,2]
[388419580,1759163431831,-550.0,0.00016899,2]
[388419581,1759163431842,-300.0,0.00016899,2]
[388419582,1759163431852,-1600.0,0.000169,6]
[388419583,1759163431862,-16370.93786471,0.000169,2]
[388419584,1759163431871,-36051.31988607,0.000169,2]
[388419585,1759163431881,-499.02889875,0.000169,2]
[388419586,1759163431892,-234.61545487,0.000169,2]
[388419587,1759163431903,-2500.0,0.000169,2]
[388419588,1759163431913,-426.22349403,0.000169,2]
[388419589,1759163431935,-2073.77650597,0.000169,2]
[388419590,1759163431946,-234.61545486,0.00016903,2]
[388419591,1759163431956,-234.61545486,0.00016906,2]
[388419592,1759163431965,-499.02889875,0.00016907,2]
[388419593,1759163431975,-234.61545486,0.00016908,2]
[388419594,1759163431984,-234.61545486,0.00016911,2]
[388419595,1759163431994,-234.61545486,0.00016914,2]
[388419596,1759163432004,-499.02889875,0.00016914,2]
[388419597,1759163432013,-195.0,0.00016928,2]
[388419598,1759163432022,-200.0,0.00016985,2]
[388419599,1759163432032,-173.32418622,0.0001699,2]
[388419600,1759163432042,-173.32418622,0.0001699,2]
[388419601,1759163432052,-173.32418622,0.0001699,2]
[388419602,1759163432061,-1200.0,0.00016998,2]
[388419603,1759163432071,-500.0,0.00016998,2]
[388419604,1759163432081,-500.0,0.00016998,2]
[388419605,1759163432090,-500.0,0.00016998,2]
[388419606,1759163432100,-500.0,0.00016998,2]
[388419607,1759163432109,-500.0,0.00016998,2]
[388419608,1759163432119,-500.0,0.00016998,2]
[388419609,1759163432129,-500.0,0.00016998,2]
[388419610,1759163432139,-256.55647463,0.00016998,2]
[388419611,1759163432148,-500.0,0.00016998,2]
[388419612,1759163432157,-396.80440842,0.00016998,2]
[388419613,1759163432169,-103.19559158,0.00016998,2]
[388419614,1759163432179,-500.0,0.00016998,2]
[388419615,1759163432188,-500.0,0.00016998,2]
[388419616,1759163432198,-500.0,0.00016998,2]